fUSD/lending_fUSD_20250331
["ID","MTS","AMOUNT","RATE_DAILY","PERIOD"]
[356889922,1743391791278,349.73,0.00014343,2]
[356889934,1743391831757,-2851.8696563,0.000149,2]
[356889935,1743391831766,-3368.26814663,0.000149,2]
[356889936,1743391831774,-144.17669346,0.000149,2]
[356889937,1743391831968,-27.29707983,0.000149,2]
[356889938,1743391831978,-1627.93948457,0.00014906,2]
[356889939,1743391832120,-497.46599754,0.00014906,2]
[356889940,1743391832132,-257.538,0.00014906,2]
[356889941,1743391832144,-417.1601092,0.00014906,2]
[356890473,1743391837660,-68.82837036,0.00014906,2]
[356890475,1743391837670,-688.679243,0.00014907,2]
[356890477,1743391837679,-2868.93196167,0.00014912,2]
[356890479,1743391837688,-688.679243,0.00014914,2]
[356890481,1743391837697,-2868.93196167,0.00014918,2]
[356890483,1743391837710,-688.679243,0.00014921,2]
[356890485,1743391837719,-2868.93196167,0.00014924,2]
[356890487,1743391837729,-688.679243,0.00014928,2]
[356890489,1743391837738,-2868.93196167,0.0001493,2]
[356890491,1743391837747,-150.99,0.0001493,2]
[356890493,1743391837756,-3176.19699561,0.0001493,2]
[356890504,1743391837854,-26817.03180847,0.0001493,2]
[356890506,1743391837866,-257.20000004,0.0001493,2]
[356890509,1743391837876,-585.50891763,0.0001493,2]
[356890511,1743391837887,-2313.06227825,0.0001493,2]
[356890513,1743391837896,-5040.69,0.0001493,2]
[356890515,1743391837904,-745.25,0.0001493,2]
[356890517,1743391837913,-3027.06,0.0001493,2]
[356890519,1743391837922,-499.99,0.0001493,2]
[356890521,1743391837931,-688.679243,0.00014936,2]
[356890522,1743391837940,-2868.93196167,0.00014936,2]
[356890525,1743391837949,-2868.93196167,0.00014942,2]
[356890526,1743391837961,-688.679243,0.00014943,2]
[356890528,1743391837970,-2868.93196167,0.00014948,2]
[356890530,1743391837979,-688.679243,0.0001495,2]
[356890532,1743391837989,-2868.93196167,0.00014954,2]
[356890534,1743391837999,-688.679243,0.00014957,2]
[356890536,1743391838007,-688.679243,0.00014964,2]
[356890538,1743391838017,-191.91857356,0.00014973,2]
[356890540,1743391838026,-842.58990893,0.00014999,2]
[356890542,1743391838034,-151095.48274434,0.00015,2]
[356890545,1743391838046,-419.229999,0.00015,2]
[356890548,1743391838067,-5799.06923783,0.00015,2]
[356890550,1743391838077,-21461.21203216,0.00015,2]
[356890721,1743391840000,-96.089475,0.00015,2]
[356890724,1743391840022,-1978206.86581635,0.00015,2]
[356890726,1743391840031,-365201.29648122,0.00015,2]
[356890728,1743391840040,-2582963.82227543,0.00015,2]
[356890745,1743391840185,-1317.53135626,0.00015,2]
[356890752,1743391840241,-2976.20822404,0.00015,2]
[356890754,1743391840252,-3583.06796825,0.00015,2]
[356890760,1743391840296,-555.74687652,0.00015,2]
[356890762,1743391840307,-1973.06986774,0.00015,2]
[356890768,1743391840354,-435.38038272,0.00015,2]
[356891091,1743391844712,-639.74098442,0.00015,2]
[356891092,1743391844723,-439.84539973,0.00015,2]
[356891094,1743391845843,-30254.16451058,0.00015,2]
[356891095,1743391845903,-832.193085,0.00015,2]
[356891096,1743391845915,-784.9815,0.00015,2]
[356891097,1743391845926,-1414.157248,0.00015,2]
[356891098,1743391845938,-545.152395,0.00015,2]
[356891099,1743391845949,-903.7147203,0.00015,2]
[356891100,1743391845964,-472.95900005,0.00015,2]
[356891101,1743391846099,-778.804,0.00015,2]
[356891102,1743391846111,-5382.10388848,0.00015,2]
[356891103,1743391846123,-559.06,0.00015,2]
[356891104,1743391846134,-2456.43933061,0.00015,2]
[356891362,1743391862407,-245.7074,0.00014899,2]
[356891363,1743391870498,-54.2926,0.00014899,2]
[356891364,1743391870543,-95.7074,0.000149,2]
[356891365,1743391960819,304.34922042,0.000148,2]
[356891366,1743391960843,866.55245833,0.000148,2]
[356891381,1743392287564,163.713764,7.945e-05,2]
[356891382,1743392328984,150.0,0.00014859,2]
[356891383,1743392348251,434.9709691,0.000147,2]
[356891384,1743392350504,-182.8084621,0.00014899,2]
[356891385,1743392377553,-117.1915379,0.00014899,2]
[356891386,1743392377576,-35.1584621,0.00014899,2]
[356891387,1743392387514,-151.28,0.00016389,3]
[356891388,1743392390340,335.158462,0.00014824,2]
[356891389,1743392400879,-198.72,0.00016389,3]
[356891390,1743392400902,-1.28,0.00016389,3]
[356891391,1743392405558,-150.0,0.00016389,3]
[356891392,1743392410081,-198.72,0.00016389,3]
[356891393,1743392410104,-31.810948,0.00016389,3]
[356891394,1743392433301,-114.8415379,0.00014899,2]
[356891395,1743392433340,-38.06997327,0.00014899,2]
[356891396,1743392447927,351.28,0.000148,2]
[356891397,1743392464119,-214.13,0.00014899,2]
[356891398,1743392464259,533.442459,0.00014824,2]
[356891399,1743392642591,-153.18104209,0.00014899,2]
[356891400,1743392980376,-8508.57154385,0.000149,2]
[356891401,1743392980425,-8508.57154385,0.000149,2]
[356891402,1743392980468,-8508.57154385,0.000149,2]
[356891403,1743392980530,-8508.57154385,0.000149,2]
[356891404,1743392980585,-1901.48455256,0.000149,2]
[356891408,1743393031940,-300.0,0.00014899,2]
[356891409,1743393031951,-236.83568415,0.000149,2]
[356891410,1743393031962,-1648.22776271,0.000149,2]
[356891411,1743393032097,-984.25482518,0.000149,2]
[356891412,1743393032107,-437.13697722,0.000149,2]
[356891413,1743393032204,-4168.56843775,0.000149,2]
[356891414,1743393032216,-11068.878,0.000149,2]
[356891415,1743393032257,-3827.24738291,0.000149,2]
[356891416,1743393032268,-1302.66754437,0.000149,2]
[356891417,1743393032314,-53475.59305775,0.000149,2]
[356891418,1743393032323,-1469.164,0.000149,2]
[356891419,1743393032332,-334.6317,0.000149,2]
[356891420,1743393032341,-810.4125,0.000149,2]
[356891421,1743393032350,-6318.6244,0.000149,2]
[356891422,1743393032359,-279.1575,0.000149,2]
[356891423,1743393032368,-367.311,0.000149,2]
[356891425,1743393032378,-171.17781157,0.000149,2]
[356891427,1743393032387,-500.0,0.00014973,2]
[356891428,1743393032396,-171.33021446,0.00014973,2]
[356891429,1743393032406,-78582.08039221,0.00015,2]
[356891430,1743393032417,-946.99381483,0.00015,2]
[356891431,1743393032428,-1202.68287334,0.00015,2]
[356891432,1743393032439,-556.26670477,0.00015,2]
[356891434,1743393038011,-589.97551441,0.00015,2]
[356891435,1743393038169,-24375.75429604,0.00015,2]
[356891655,1743393040341,-0.00500644,0.00015,2]
[356891659,1743393040366,-4617.58357227,0.00015,2]
[356891661,1743393040377,-4019.09127962,0.00015,2]
[356891663,1743393040388,-315.6,0.00015,2]
[356891906,1743393043046,-181.01002412,0.000149,2]
[356891907,1743393043056,-616.6930235,0.00015,2]
[356891912,1743393043096,-23973.95721219,0.00015,2]
[356891918,1743393043151,-538.67097406,0.00015,2]
[356891959,1743393045934,-777.69084732,0.00015,2]
[356891960,1743393045988,-3596.12249973,0.00015,2]
[356891961,1743393045999,-2531.698029,0.00015,2]
[356891962,1743393046097,-10471.784483,0.00015,2]
[356891963,1743393046151,-7201.90247,0.00015,2]
[356892416,1743393073251,1750.0,0.000251,120]
[356892417,1743393239190,-390.23682224,0.00014899,2]
[356892418,1743393360513,-1232.8997856,0.00014899,2]
[356892419,1743393360535,-216.72785146,0.000149,2]
[356892420,1743393360557,-349.9261,0.000149,2]
[356892421,1743393360579,-191.61952762,0.000149,2]
[356892422,1743393360600,-500.0,0.00014973,2]
[356892423,1743393360623,-500.0,0.00014973,2]
[356892424,1743393360645,-1003.17646235,0.00014999,2]
[356892425,1743393360666,-150.0,0.00014999,2]
[356892426,1743393360692,-2445.65027297,0.00015,2]
[356892427,1743393601496,434.9709691,0.0001454,2]
[356892428,1743393662094,23666.14834976,0.0001485,2]
[356892429,1743393662217,-200.0,0.00014899,2]
[356892432,1743393755082,1473.0,0.000143,2]
[356892433,1743393773926,1800.0,0.00033477,120]
[356892434,1743393830332,250.0,0.00014744,2]
[356892435,1743393901879,-150.57,0.00014899,2]
[356892436,1743393919798,516.94,0.00033477,120]
[356892437,1743393963500,-201.88251824,0.00014899,2]
[356892438,1743394041932,-530.0,0.000149,2]
[356892439,1743394133852,529.0,0.000148,2]
[356892440,1743394141865,-156.7554,0.00014899,2]
[356892442,1743394232120,-1301.36397506,0.000149,2]
[356892443,1743394232132,-950.26546194,0.000149,2]
[356892444,1743394232144,-1266.60175907,0.000149,2]
[356892445,1743394232155,-2208.97184433,0.000149,2]
[356892446,1743394232167,-412.4943596,0.000149,2]
[356892447,1743394232176,-590.2368,0.000149,2]
[356892448,1743394232186,-1349.8477,0.000149,2]
[356892449,1743394232195,-162.86240699,0.000149,2]
[356892450,1743394232204,-509.208,0.000149,2]
[356892451,1743394232213,-31.38824391,0.000149,2]
[356892452,1743394232228,-760.90235609,0.000149,2]
[356892453,1743394232236,-500.0,0.000149,2]
[356892454,1743394232244,-500.0,0.00014973,2]
[356892455,1743394232253,-2129.32556308,0.00015,2]
[356892456,1743394232265,-1388.74836848,0.00015,2]
[356892457,1743394232276,-195853.83489444,0.00015,2]
[356892458,1743394232285,-43414.92051875,0.00015,2]
[356892459,1743394232295,-4157.1441374,0.00015013,2]
[356892460,1743394232304,-18481.0276204,0.00015013,2]
[356892461,1743394232314,-152.65,0.00015043,2]
[356892462,1743394232323,-152.65,0.00015871,2]
[356892463,1743394232332,-8405.14851135,0.00016,2]
[356892464,1743394232341,-150.99,0.0001613,2]
[356892465,1743394232350,-299.99,0.0001613,4]
[356892466,1743394232359,-2104.102,0.00016208,2]
[356892467,1743394232369,-750.34,0.00016252,2]
[356892468,1743394232378,-350.0,0.00016389,3]
[356892469,1743394232387,-350.0,0.00016389,3]
[356892470,1743394232396,-350.0,0.0001639,3]
[356892471,1743394232406,-152.65,0.00016698,2]
[356892472,1743394232416,-188.06,0.00016712,2]
[356892473,1743394232426,-23900.0,0.00016876,2]
[356892474,1743394232435,-500.0,0.00016894,2]
[356892475,1743394232444,-173.52,0.00017197,2]
[356892476,1743394232453,-200.0,0.00017241,2]
[356892477,1743394232463,-231.89,0.00017271,2]
[356892478,1743394232472,-184.49,0.00017392,2]
[356892479,1743394232480,-976.21,0.00017456,2]
[356892480,1743394232490,-1404.78,0.00017471,2]
[356892481,1743394232499,-152.65,0.00017526,2]
[356892482,1743394232508,-250.0,0.00017688,2]
[356892483,1743394232518,-22902.64,0.00017704,2]
[356892484,1743394232527,-150.0,0.00017704,7]
[356892485,1743394232536,-200.0,0.00017717,2]
[356892486,1743394232545,-190.52134064,0.00018,2]
[356892487,1743394232554,-250.0,0.00018035,2]
[356892488,1743394232564,-6852.36,0.00018055,2]
[356892489,1743394232573,-172.87,0.00018076,2]
[356892490,1743394232582,-873.43,0.00018183,2]
[356892491,1743394232591,-1000.0,0.00018207,2]
[356892492,1743394232601,-750.34,0.00018516,2]
[356892493,1743394232610,-173.94,0.00018654,2]
[356892495,1743394232619,-300.0,0.00018978,2]
[356892497,1743394232628,-17662.58143138,0.00019,2]
[356892499,1743394232636,-185.29839117,0.0001948,2]
[356892501,1743394232645,-173.94,0.0001968,2]
[356892503,1743394232655,-150.0,0.00019834,2]
[356892505,1743394232664,-150.0,0.00019844,2]
[356892507,1743394232673,-150.0,0.00019845,2]
[356892509,1743394232682,-150.0,0.00019846,2]
[356892511,1743394232691,-150.0,0.00019856,2]
[356892513,1743394232700,-150.0,0.00019858,2]
[356892515,1743394232710,-150.0,0.0001986,2]
[356892517,1743394232719,-150.0,0.00019861,2]
[356892519,1743394232728,-150.0,0.00019865,2]
[356892521,1743394232737,-150.0,0.00019865,2]
[356892522,1743394232746,-150.0,0.00019867,2]
[356892524,1743394232755,-150.0,0.00019867,2]
[356892526,1743394232764,-150.0,0.00019867,2]
[356892528,1743394232773,-150.0,0.00019869,2]
[356892530,1743394232783,-150.0,0.0001987,2]
[356892532,1743394232792,-150.0,0.00019873,2]
[356892534,1743394232801,-150.0,0.00019873,2]
[356892536,1743394232810,-150.0,0.00019874,2]
[356892539,1743394232823,-150.0,0.00019877,2]
[356892541,1743394232832,-150.0,0.0001988,2]
[356892543,1743394232841,-150.0,0.0001988,2]
[356892545,1743394232850,-150.0,0.00019881,2]
[356892547,1743394232859,-150.0,0.00019885,2]
[356892549,1743394232867,-150.0,0.00019887,2]
[356892550,1743394232876,-150.0,0.00019903,2]
[356892552,1743394232885,-150.0,0.00019905,2]
[356892554,1743394232895,-150.0,0.00019906,2]
[356892556,1743394232903,-150.0,0.00019908,2]
[356892558,1743394232913,-150.0,0.00019908,2]
[356892560,1743394232922,-150.0,0.00019913,2]
[356892562,1743394232931,-150.0,0.00019914,2]
[356892564,1743394232940,-150.0,0.00019915,2]
[356892566,1743394232949,-150.0,0.00019915,2]
[356892568,1743394232958,-150.0,0.00019921,2]
[356892570,1743394232967,-150.0,0.00019923,2]
[356892572,1743394232976,-150.0,0.00019927,2]
[356892574,1743394232985,-150.0,0.00019931,2]
[356892593,1743394233153,-150.0,0.00019932,2]
[356892595,1743394233164,-150.0,0.00019938,2]
[356892597,1743394233173,-150.0,0.00019944,2]
[356892599,1743394233183,-150.0,0.00019947,2]
[356892601,1743394233192,-150.0,0.00019957,2]
[356892603,1743394233202,-150.0,0.00019962,2]
[356892605,1743394233211,-150.0,0.00019963,2]
[356892607,1743394233223,-150.0,0.00019972,2]
[356892609,1743394233234,-150.0,0.00019972,2]
[356892611,1743394233243,-150.0,0.00019972,2]
[356892613,1743394233253,-150.0,0.00019981,2]
[356892615,1743394233265,-150.0,0.00019985,2]
[356892617,1743394233275,-150.0,0.00019986,2]
[356892619,1743394233285,-150.0,0.00019988,2]
[356892621,1743394233294,-150.0,0.00019992,2]
[356892623,1743394233305,-150.0,0.00019992,2]
[356892625,1743394233315,-150.0,0.00019994,2]
[356892627,1743394233324,-150.0,0.00019997,2]
[356892629,1743394233334,-1013.0,0.0002,6]
[356892631,1743394233343,-150.0,0.00020001,2]
[356892633,1743394233352,-150.0,0.00020001,2]
[356892635,1743394233362,-150.0,0.00020001,2]
[356892636,1743394233371,-150.0,0.00020007,2]
[356892639,1743394233381,-150.0,0.0002001,2]
[356892640,1743394233391,-150.0,0.00020014,2]
[356892642,1743394233401,-150.0,0.00020016,2]
[356892645,1743394233412,-150.0,0.00020021,2]
[356892646,1743394233422,-150.0,0.00020022,2]
[356892648,1743394233432,-150.0,0.00020027,2]
[356892650,1743394233441,-150.0,0.00020028,2]
[356892652,1743394233450,-150.0,0.00020033,2]
[356892654,1743394233460,-150.0,0.00020037,2]
[356892656,1743394233469,-150.0,0.0002004,2]
[356892658,1743394233479,-150.0,0.00020041,2]
[356892660,1743394233488,-150.0,0.00020041,2]
[356892662,1743394233498,-150.0,0.00020042,2]
[356892664,1743394233507,-150.0,0.00020043,2]
[356892666,1743394233516,-150.0,0.00020044,2]
[356892668,1743394233526,-150.0,0.00020045,2]
[356892670,1743394233535,-150.0,0.00020046,2]
[356892672,1743394233545,-150.0,0.00020051,2]
[356892674,1743394233555,-150.0,0.00020058,2]
[356892676,1743394233564,-150.0,0.00020063,2]
[356892678,1743394233573,-150.0,0.00020067,2]
[356892680,1743394233583,-150.0,0.0002007,2]
[356892682,1743394233592,-150.0,0.0002007,2]
[356892684,1743394233601,-150.0,0.00020073,2]
[356892686,1743394233610,-150.0,0.00020073,2]
[356892688,1743394233619,-150.0,0.00020075,2]
[356892690,1743394233628,-150.0,0.00020077,2]
[356892692,1743394233637,-150.0,0.0002008,2]
[356892694,1743394233647,-150.0,0.00020083,2]
[356892696,1743394233656,-150.0,0.00020085,2]
[356892698,1743394233666,-150.0,0.00020094,2]
[356892700,1743394233675,-150.0,0.00020095,2]
[356892702,1743394233684,-174.66,0.000201,2]
[356892704,1743394233693,-199.32583234,0.0002022,2]
[356892706,1743394233702,-500.0,0.00020281,2]
[356892708,1743394233712,-150.0,0.00020319,2]
[356892710,1743394233721,-300.0,0.00020348,2]
[356892712,1743394233731,-1035.93965582,0.00020428,2]
[356892714,1743394233739,-150.0,0.00020469,2]
[356892716,1743394233749,-1000.0,0.00020483,2]
[356892718,1743394233758,-150.0,0.00020484,2]
[356892720,1743394233768,-150.0,0.00020493,2]
[356892722,1743394233777,-1036.50055574,0.00020531,2]
[356892723,1743394233786,-150.0,0.00020533,2]
[356892725,1743394233795,-4142.47595524,0.00020548,2]
[356892728,1743394233809,-413.21193929,0.00020548,2]
[356892730,1743394233824,-628.42,0.00020548,2]
[356892732,1743394233835,-396.16,0.00020548,2]
[356892734,1743394233848,-580.09410336,0.00020548,2]
[356892737,1743394233860,-5836.14800211,0.00020548,2]
[356892739,1743394233869,-150.0,0.00020574,2]
[356892741,1743394233878,-150.0,0.00020589,2]
[356892743,1743394233888,-150.0,0.00020593,2]
[356892745,1743394233898,-150.0,0.00020607,2]
[356892746,1743394233908,-150.0,0.00020617,2]
[356892748,1743394233918,-260.57908108,0.0002062,2]
[356892750,1743394233928,-150.0,0.00020632,2]
[356892752,1743394233938,-150.0,0.0002066,2]
[356892754,1743394233948,-150.0,0.00020662,2]
[356892756,1743394233958,-150.0,0.00020663,2]
[356892758,1743394233967,-150.0,0.00020665,2]
[356892760,1743394233977,-222.00160915,0.00020698,2]
[356892762,1743394233986,-114.82922616,0.00020706,2]
[356892764,1743394233998,-59.11077384,0.00020706,2]
[356892766,1743394234007,-750.34,0.0002078,2]
[356892768,1743394234016,-71137.72106691,0.00021,2]
[356892770,1743394234027,-1139.681725,0.00021,2]
[356892772,1743394234038,-6530.04607583,0.00021,2]
[356892775,1743394234049,-83264.32757251,0.00021,2]
[356892777,1743394234060,-1098.60154289,0.00021,2]
[356892779,1743394234072,-447.46047696,0.00021,2]
[356892781,1743394234087,-5622.03985906,0.00021,2]
[356892784,1743394234098,-752.99388832,0.00021,2]
[356892786,1743394234110,-3867.03366892,0.00021,2]
[356892788,1743394234119,-162.86240697,0.00021233,2]
[356892790,1743394234129,-5069.78,0.0002137,2]
[356892792,1743394234138,-173.52,0.00021496,2]
[356892794,1743394234152,-173.94,0.00021733,2]
[356892796,1743394234163,-1000.0,0.00022759,2]
[356892798,1743394234173,-200.0,0.00023,2]
[356892800,1743394234183,-750.34,0.00023043,2]
[356892801,1743394234192,-185.29839117,0.0002318,2]
[356892802,1743394234202,-178.04,0.00023836,2]
[356892803,1743394234212,-3271.54757023,0.00024,2]
[356892805,1743394238032,-498.014838,0.00018198,2]
[356892806,1743394238044,-1.985162,0.00018198,2]
[356892807,1743394238053,-494.85717328,0.00024,2]
[356892808,1743394238065,-1963.29349993,0.00024,2]
[356892809,1743394238074,-1123.0,0.000244,2]
[356892810,1743394238084,-1404.78,0.00024459,2]
[356892811,1743394238093,-1000.0,0.00024658,2]
[356892812,1743394238103,-1059.0,0.00024781,2]
[356892813,1743394238112,-360.18143218,0.0002488,7]
[356892814,1743394238121,-151.31,0.0002499,2]
[356892815,1743394238131,-199.47659596,0.00025,2]
[356892816,1743394238140,-1599.92922319,0.00025,2]
[356892817,1743394238148,-255.78237048,0.00025,2]
[356892818,1743394238157,-202.52518666,0.00025,2]
[356892819,1743394238167,-200.0,0.00025,2]
[356892820,1743394238176,-8362.7224629,0.00025,2]
[356892821,1743394238187,-1374.5550006,0.00025,2]
[356892822,1743394238292,-1029.578,0.00025,2]
[356892824,1743394238306,-2125.0,0.00025,2]
[356892826,1743394238317,-925.1,0.00025,2]
[356892828,1743394238328,-614.6374616,0.00025,2]
[356892830,1743394238339,-449.500001,0.00025,2]
[356892832,1743394238350,-736.57390145,0.00025,2]
[356892834,1743394238361,-1026.92935832,0.00025,2]
[356892836,1743394238372,-368.47889,0.00025,2]
[356892838,1743394238383,-680.891175,0.00025,2]
[356892840,1743394238397,-528.69395831,0.00025,2]
[356892842,1743394238408,-859.54031443,0.00025,2]
[356892998,1743394240186,-7901.67657273,0.00025,2]
[356892999,1743394240398,-1106.48039432,0.00025,2]
[356893000,1743394240505,-643.47365204,0.00025,2]
[356893001,1743394240609,-1034.6788,0.00025,2]
[356893002,1743394240621,-2335.29685159,0.00025,2]
[356893003,1743394240632,-329.38616096,0.00025,2]
[356893004,1743394240652,-3150.11392817,0.00025,2]
[356893005,1743394240664,-5765.18510963,0.00025,2]
[356893006,1743394240675,-1025.06710056,0.00025,2]
[356893015,1743394244389,-1794.0,0.00025,2]
[356893699,1743394321310,350.0,0.00014949,3]
[356893700,1743394323202,-193.2446,0.00014899,2]
[356893701,1743394385030,-150.0,0.00014899,2]
[356893702,1743394385054,-20.7609,0.00014899,2]
[356893703,1743394441983,-209.18788257,0.00014899,2]
[356893704,1743394505318,176.79817418,0.000148,2]
[356893708,1743394681815,350.0,0.000149,3]
[356893709,1743394850742,176.79817417,0.000148,2]
[356893710,1743395127264,270.16079286,0.00033474,30]
[356893711,1743395128525,346.46612151,0.00033474,30]
[356893712,1743395162024,350.0,0.000149,3]
[356893714,1743395230486,271.60367466,9.14e-05,2]
[356893715,1743395273841,206.06031365,0.00033474,30]
[356893716,1743395278705,12891.26109928,0.0001,2]
[356893723,1743395314872,916.66440401,9.828e-05,2]
[356893724,1743395317466,15000.0,0.00033474,30]
[356893746,1743395432396,-453.51,0.000149,2]
[356893747,1743395432454,-448.1275,0.000149,2]
[356893748,1743395432464,-13420.73498936,0.000149,2]
[356893749,1743395432513,-978.02127164,0.000149,2]
[356893750,1743395432524,-1506.47192395,0.000149,2]
[356893751,1743395432572,-3162.85049579,0.000149,2]
[356893752,1743395432630,-869.78201926,0.000149,2]
[356893753,1743395432640,-1305.9474,0.000149,2]
[356893754,1743395432650,-2881.0024,0.000149,2]
[356893755,1743395432661,-500.0,0.000149,2]
[356893756,1743395432671,-162.47593309,0.000149,2]
[356893757,1743395432681,-461.34154074,0.000149,2]
[356893758,1743395432691,-164.70968104,0.000149,2]
[356893759,1743395432699,-914.3737137,0.000149,2]
[356893760,1743395432709,-500.0,0.00014973,2]
[356893761,1743395432717,-502.6141298,0.00014973,2]
[356893762,1743395432726,-386.8134353,0.00014999,2]
[356893763,1743395432737,-71320.54267849,0.00015,2]
[356893764,1743395432749,-298.86,0.00015,2]
[356893766,1743395432760,-2995.11799,0.00015,2]
[356893768,1743395432772,-3894.63008053,0.00015,2]
[356893770,1743395432786,-15281.09069814,0.00015,2]
[356893824,1743395438243,-386.8134353,0.00015,2]
[356893825,1743395438463,-26894.64550172,0.00015,2]
[356893826,1743395438519,-542.15046538,0.00015,2]
[356893874,1743395440465,-328.71640676,0.00015,2]
[356893875,1743395440642,-4377655.59558973,0.00015,2]
[356893876,1743395440652,-548716.38898327,0.00015,2]
[356893877,1743395440666,-408.86,0.00015,2]
[356893878,1743395440760,-0.00625744,0.00015,2]
[356893879,1743395440772,-981.89589485,0.00015,2]
[356893880,1743395440783,-503.52061042,0.00015,2]
[356893978,1743395446368,-4023.8336592,0.00015,2]
[356893979,1743395446381,-4921.93999973,0.00015,2]
[356893980,1743395446394,-794.28300001,0.00015,2]
[356893981,1743395446406,-1148.699622,0.00015,2]
[356893982,1743395446537,-1081.43999999,0.00015,2]
[356894623,1743395584723,-150.0,0.00014899,2]
[356894624,1743395591838,247.75195016,0.000148,2]
[356894625,1743395888153,160.621019,7.945e-05,2]
[356894626,1743396128153,434.9709691,0.00014649,2]
[356894627,1743396129926,215.71,0.0002367,120]
[356894628,1743396241870,350.0,0.000149,3]
[356894629,1743396361724,350.0,0.00014899,3]
[356894630,1743396602930,-150.0,0.00014899,2]
[356894631,1743396602959,-150.0,0.00014899,2]
[356894632,1743396602987,-1475.6587,0.000149,2]
[356894633,1743396603016,-427.35228354,0.000149,2]
[356894634,1743396603066,-72.64771646,0.000149,2]
[356894635,1743396603097,-9013.61012007,0.000149,2]
[356894636,1743396603134,-2154.15417993,0.000149,2]
[356894637,1743396603163,-2050.8722,0.000149,2]
[356894638,1743396603193,-1436.73,0.000149,2]
[356894639,1743396603221,-1000.0,0.000149,2]
[356894640,1743396603250,-223.8848,0.000149,2]
[356894641,1743396603279,-2220.6166566,0.000149,2]
[356894642,1743396618796,434.9709691,0.00014581,2]
[356894644,1743396631526,-315.3972434,0.000149,2]
[356894645,1743396631536,-744.7185,0.000149,2]
[356894646,1743396631546,-482.0856,0.000149,2]
[356894647,1743396631557,-365.19994533,0.000149,2]
[356894648,1743396631569,-67.55615467,0.000149,2]
[356894649,1743396631578,-364.0055,0.000149,2]
[356894650,1743396631588,-150.0,0.00014925,2]
[356894651,1743396631598,-367.33834533,0.00014973,2]
[356894652,1743396631609,-138.18186899,0.00014973,2]
[356894653,1743396631619,-662.70733431,0.00014999,2]
[356894654,1743396631628,-365.37362311,0.00014999,2]
[356894655,1743396631644,-4356.9970066,0.00014999,2]
[356894656,1743396631654,-3611.2029934,0.00015,2]
[356894657,1743396631665,-970.99304133,0.00015,2]
[356894658,1743396631817,-927.61514,0.00015,2]
[356894659,1743396631828,-312.5,0.00015,2]
[356894660,1743396631858,-562.5,0.00015,2]
[356894661,1743396631869,-610.44814184,0.00015,2]
[356894662,1743396631881,-718.889993,0.00015,2]
[356894663,1743396631897,-5000.00297171,0.00015,2]
[356894664,1743396631911,-11477.56866556,0.00015,2]
[356894665,1743396631922,-259.7595,0.00015,2]
[356894721,1743396637468,-12000.0,0.00015,2]
[356894722,1743396637480,-50897.56208084,0.00015,2]
[356894723,1743396637491,-13050.4944388,0.00015,2]
[356894724,1743396637502,-3821.21033686,0.00015,2]
[356894725,1743396637514,-555.23343069,0.00015,2]
[356894726,1743396637527,-2050.17246659,0.00015,2]
[356894727,1743396637539,-1235.0,0.00015,2]
[356894728,1743396637550,-11610.86009018,0.00015,2]
[356894729,1743396637561,-4770.83653177,0.00015,2]
[356894730,1743396637588,-689.32368187,0.00015,2]
[356894731,1743396637646,-945.17380999,0.00015,2]